bitfinex/quotes_SOLUSD_20250831
["timestamp","ask_amount","ask_price","bid_price","bid_amount"]
[1756604459893,5.53112648,206.14,206.09,57.13173708]
[1756604460374,5.53112648,206.14,206.09,17.03173708]
[1756604460580,5.53112648,206.14,206.1,40.08]
[1756604461579,5.53112648,206.14,206.1,43.51614307]
[1756604462479,5.53112648,206.14,206.1,3.43614307]
[1756604462700,0.68,206.14,206.1,3.43614307]
[1756604462875,4.84919018,206.22,206.14,13.59559401]
[1756604463075,0.71,206.21,206.15,43.49614307]
[1756604463597,26.0,206.19,206.15,43.49614307]
[1756604464100,4.84993907,206.19,206.15,43.49614307]
[1756604464298,0.71,206.21,206.16,3.43614307]
[1756604464484,0.71,206.21,206.15,40.06]
[1756604464485,4.20614307,206.23,206.17,3.97614307]
[1756604464804,0.77,206.23,206.18,3.43614307]
[1756604465009,0.06,206.23,206.19,40.06]
[1756604465181,8.99536269,206.22,206.19,40.06]
[1756604465382,0.71,206.21,206.19,40.06]
[1756604465601,8.28536269,206.22,206.19,40.06]
[1756604465782,0.71,206.2,206.19,40.06]
[1756604466107,4.84989572,206.19,206.18,40.04]
[1756604466309,8.99603879,206.19,206.16,40.04]
[1756604466495,4.14614307,206.18,206.16,40.04]
[1756604466807,0.71,206.17,206.16,40.04]
[1756604467710,4.14614307,206.17,206.09,0.03]
[1756604467894,3.43614307,206.15,206.1,40.04]
[1756604468285,4.85130742,206.13,206.1,40.04]
[1756604469614,5.56130742,206.13,206.11,40.04]
[1756604470313,4.85130742,206.13,206.11,40.04]
[1756604470702,0.71,206.12,206.09,13.62559401]
[1756604470907,4.14614307,206.12,206.09,0.03]
[1756604471212,5.56085312,206.15,206.1,40.02]
[1756604471515,5.56085312,206.15,206.1,43.45614307]
[1756604472014,5.56085312,206.15,206.1,43.99614307]
[1756604472306,4.85085312,206.15,206.1,43.45614307]
[1756604472608,4.84919018,206.22,206.15,13.59559401]
[1756604472911,4.84919018,206.22,206.17,3.43614307]
[1756604473099,4.84919018,206.22,206.17,3.97614307]
[1756604473812,5.55919018,206.22,206.17,3.97614307]
[1756604474189,4.9089928,206.23,206.18,3.43614307]
[1756604474384,0.06,206.23,206.2,3.43614307]
[1756604474601,0.06,206.23,206.21,40.0]
[1756604474807,0.06,206.23,206.21,43.43614307]
[1756604475012,0.06,206.23,206.21,40.0]
[1756604475909,0.06,206.32,206.28,13.59559401]
[1756604476112,0.06,206.32,206.3,13.59559401]
[1756604476323,0.06,206.32,206.27,0.24]
[1756604476498,0.06,206.32,206.29,13.59559401]
[1756604476700,0.77,206.32,206.3,40.0]
[1756604477386,0.06,206.32,206.3,40.0]
[1756604478216,0.77,206.32,206.3,40.0]
[1756604478397,0.77,206.32,206.31,39.98]
[1756604478814,0.06,206.32,206.31,39.98]
[1756604479314,4.20614307,206.32,206.31,39.98]
[1756604479529,4.20614307,206.32,206.26,17.03173708]
[1756604479698,0.77,206.32,206.27,43.41614307]
[1756604479893,0.06,206.32,206.27,43.41614307]
[1756604480100,0.06,206.32,206.28,17.03173708]
[1756604480596,0.06,206.32,206.28,13.59559401]
[1756604481720,4.14614307,206.31,206.29,39.98]
[1756604481922,0.71,206.31,206.29,39.98]
[1756604482123,3.49614307,206.32,206.29,39.98]
[1756604482301,0.06,206.32,206.29,39.98]
[1756604485103,0.06,206.32,206.3,39.96]
[1756604485419,0.06,206.32,206.28,3.43614307]
[1756604485618,0.06,206.32,206.29,39.96]
[1756604485814,0.06,206.32,206.3,39.96]
[1756604486715,0.06,206.32,206.27,3.43614307]
[1756604486898,0.06,206.32,206.28,39.96]
[1756604487701,0.06,206.32,206.27,3.67614307]
[1756604487702,0.06,206.32,206.27,3.43614307]
[1756604487898,3.43614307,206.28,206.2,26.24]
[1756604488117,3.43614307,206.27,206.22,3.43614307]
[1756604488307,0.71,206.27,206.22,3.43614307]
[1756604489413,0.71,206.27,206.23,3.43614307]
[1756604489726,0.71,206.27,206.21,58.40497723]
[1756604490028,0.71,206.27,206.23,3.43614307]
[1756604490235,0.71,206.27,206.22,3.43614307]
[1756604490714,5.55808079,206.27,206.22,3.43614307]
[1756604491534,4.84808079,206.27,206.22,3.43614307]
[1756604491828,3.43614307,206.23,206.16,3.43614307]
[1756604492038,3.43614307,206.22,206.17,39.94]
[1756604492218,4.15614307,206.22,206.17,39.94]
[1756604492419,4.15614307,206.21,206.17,13.59559401]
[1756604492726,0.72,206.21,206.18,39.94]
[1756604492941,0.72,206.21,206.17,3.43614307]
[1756604493114,0.72,206.21,206.18,39.94]
[1756604493631,4.84836474,206.26,206.2,3.43614307]
[1756604493930,4.84836474,206.26,206.22,3.43614307]
[1756604494132,0.72,206.27,206.23,43.37614307]
[1756604494435,4.8479577,206.28,206.23,43.37614307]
[1756604494632,29.43614307,206.3,206.24,3.43614307]
[1756604494816,29.43614307,206.3,206.23,39.94]
[1756604494817,26.72,206.3,206.25,3.43614307]
[1756604495132,0.72,206.29,206.25,3.43614307]
[1756604495430,3.43614307,206.29,206.23,3.43614307]
[1756604495636,8.28439285,206.26,206.24,39.94]
[1756604495823,0.72,206.25,206.24,39.94]
[1756604496209,0.72,206.25,206.21,3.43614307]
[1756604496417,0.72,206.25,206.24,39.94]
[1756604497238,9.00462791,206.25,206.24,39.94]
[1756604497616,5.56848484,206.25,206.17,0.03]
[1756604497928,3.43614307,206.22,206.18,39.94]
[1756604498127,4.15614307,206.21,206.18,39.94]
[1756604499021,9.00567277,206.21,206.18,39.94]
[1756604500023,9.00567277,206.21,206.17,0.03]
[1756604500232,3.43614307,206.2,206.17,0.03]
[1756604500419,4.15614307,206.2,206.18,39.94]
[1756604500743,0.72,206.19,206.18,39.94]
[1756604501525,26.0,206.25,206.17,3.46614307]
[1756604501747,3.43614307,206.24,206.18,43.37614307]
[1756604501920,4.15614307,206.24,206.18,43.37614307]
[1756604502322,9.004863,206.24,206.18,43.37614307]
[1756604502938,3.43614307,206.28,206.22,3.43614307]
[1756604503129,12.11785811,206.31,206.23,39.94]
[1756604503130,0.72,206.3,206.23,39.94]
[1756604503444,26.0,206.28,206.24,39.94]
[1756604503851,26.72,206.28,206.24,43.37614307]
[1756604504723,0.72,206.28,206.24,43.37614307]
[1756604504920,0.72,206.27,206.24,43.37614307]
[1756604505645,0.72,206.27,206.24,39.94]
[1756604506526,5.56766778,206.29,206.24,39.94]
[1756604506732,5.56784089,206.28,206.24,39.94]
[1756604507032,9.00398396,206.28,206.24,39.94]
[1756604507237,0.72,206.27,206.24,39.94]
[1756604507636,3.43614307,206.27,206.18,4.84992367]
[1756604507854,0.72,206.27,206.22,3.43614307]
[1756604508033,0.72,206.27,206.23,39.92]
[1756604508233,0.72,206.27,206.24,39.92]
[1756604508442,4.84784089,206.28,206.24,43.35614307]
[1756604508855,9.00368422,206.3,206.24,43.35614307]
[1756604509153,5.56754115,206.3,206.25,3.43614307]
[1756604509555,3.43614307,206.31,206.25,3.67614307]
[1756604509742,26.78,206.32,206.27,3.43614307]
[1756604510054,4.15614307,206.31,206.28,39.92]
[1756604510452,3.43614307,206.31,206.28,39.92]
[1756604510660,4.15614307,206.3,206.28,39.92]
[1756604510953,8.28345107,206.31,206.25,13.59559401]
[1756604511157,10.3005124,206.49,206.3,43.03173708]
[1756604511333,3.43614307,206.45,206.4,13.59559401]
[1756604511533,3.43614307,206.45,206.41,40.56]
[1756604512449,3.43614307,206.46,206.41,40.56]
[1756604512645,15.95893109,206.51,206.42,17.55173708]
[1756604512849,3.43614307,206.46,206.43,40.56]
[1756604513349,10.65985571,206.47,206.43,40.56]
[1756604513544,4.84355563,206.46,206.43,40.56]
[1756604514648,5.56355563,206.46,206.42,13.59559401]
[1756604514842,4.84380566,206.45,206.43,40.54]
[1756604515047,4.84380566,206.45,206.42,13.59559401]
[1756604515567,4.84380566,206.45,206.43,40.48]
[1756604516161,10.659818,206.48,206.43,40.48]
[1756604516554,4.84334451,206.47,206.42,19.41211899]
[1756604516850,4.84334451,206.47,206.43,46.25652498]
[1756604517059,4.84361139,206.46,206.43,40.44]
[1756604517358,5.81652498,206.48,206.43,40.44]
[1756604517538,32.53652498,206.49,206.43,46.25652498]
[1756604517741,4.843422,206.47,206.43,46.25652498]
[1756604519750,4.84363,206.46,206.43,46.17652498]
[1756604519946,4.84363,206.46,206.43,40.36]
[1756604520258,4.84363,206.46,206.42,19.41211899]
[1756604520458,4.84393473,206.45,206.43,40.32]
[1756604520663,0.72,206.43,206.39,5.81652498]
[1756604520845,0.72,206.42,206.4,40.32]
[1756604521160,0.92,206.44,206.4,46.13652498]
[1756604521360,0.67,206.43,206.4,46.13652498]
[1756604521766,5.51434879,206.43,206.4,46.13652498]
[1756604522263,5.51434879,206.43,206.41,40.3]
[1756604523263,0.67,206.42,206.36,0.52]
[1756604523560,0.67,206.42,206.38,5.81652498]
[1756604523765,0.67,206.42,206.39,40.26]
[1756604524069,0.67,206.41,206.39,40.26]
[1756604524945,4.84434879,206.43,206.4,40.26]
[1756604525150,5.81652498,206.42,206.41,40.22]
[1756604525561,0.2,206.44,206.42,13.59559401]
[1756604525854,0.2,206.44,206.43,5.81652498]
[1756604528561,0.2,206.44,206.4,5.3647518]
[1756604528768,0.2,206.44,206.43,5.81652498]
[1756604529648,0.87,206.44,206.43,46.09652498]
[1756604529851,0.2,206.44,206.43,40.28]
[1756604530168,0.2,206.44,206.43,46.09652498]
[1756604530339,0.2,206.44,206.43,5.81652498]
[1756604530662,0.2,206.44,206.43,40.22]
[1756604531042,0.2,206.44,206.42,5.81652498]
[1756604531252,0.87,206.44,206.43,40.22]
[1756604531454,0.28197097,206.44,206.43,40.22]
[1756604531654,0.28197097,206.44,206.42,5.81652498]
[1756604531856,0.28197097,206.44,206.43,40.18]
[1756604532253,0.28197097,206.44,206.43,45.99652498]
[1756604532458,0.28197097,206.44,206.43,5.81652498]
[1756604532662,0.28197097,206.44,206.43,40.18]
[1756604533365,0.28197097,206.44,206.42,5.81652498]
[1756604533574,0.28197097,206.44,206.43,45.97652498]
[1756604534272,0.28197097,206.44,206.43,40.16]
[1756604534574,0.28197097,206.44,206.43,45.97652498]
[1756604535257,0.28197097,206.44,206.43,40.16]
[1756604535452,0.28197097,206.44,206.43,43.58660298]
[1756604535968,0.28197097,206.44,206.43,3.42660298]
[1756604536169,0.28197097,206.44,206.43,43.52660298]
[1756604539953,0.28197097,206.44,206.43,3.42660298]
[1756604540179,0.28197097,206.44,206.43,43.38660298]
[1756604540380,0.28197097,206.44,206.43,3.42660298]
[1756604540574,0.28197097,206.44,206.43,43.38660298]
[1756604541475,0.28197097,206.44,206.43,57.50219699]
[1756604541676,0.28197097,206.44,206.43,56.98219699]
[1756604542182,0.28197097,206.44,206.43,17.02219699]
[1756604542484,0.28197097,206.44,206.43,57.48219699]
[1756604542665,0.28197097,206.44,206.43,3.42660298]
[1756604542866,0.28197097,206.44,206.43,56.96219699]
[1756604543065,0.28197097,206.44,206.43,61.80645412]
[1756604543683,0.28197097,206.44,206.43,62.32645412]
[1756604544562,0.28197097,206.44,206.43,22.38645412]
[1756604544764,0.28197097,206.44,206.43,13.59559401]
[1756604544965,0.28197097,206.44,206.43,56.92219699]
[1756604545284,0.28197097,206.44,206.43,65.42936587]
[1756604545588,0.28197097,206.44,206.43,22.38645412]
[1756604545761,0.28197097,206.44,206.43,57.48219699]
[1756604546184,0.28197097,206.44,206.43,56.96219699]
[1756604546765,0.28197097,206.44,206.43,17.02219699]
[1756604546980,0.28197097,206.44,206.43,56.94219699]
[1756604547587,0.28197097,206.44,206.43,61.78645412]
[1756604547978,0.28197097,206.44,206.43,58.35985114]
[1756604548183,0.28197097,206.44,206.43,61.78645412]
[1756604550388,0.28197097,206.44,206.43,56.94219699]
[1756604550690,0.28197097,206.44,206.43,56.92219699]
[1756604551278,0.28197097,206.44,206.43,60.07279477]
[1756604552192,0.28197097,206.44,206.43,56.92219699]
[1756604552380,0.28197097,206.44,206.43,60.07320755]
[1756604552778,0.28197097,206.44,206.43,20.17576223]
[1756604553104,0.28197097,206.44,206.43,60.07576223]
[1756604553675,0.28197097,206.44,206.43,64.92001936]
[1756604553883,0.28197097,206.44,206.43,60.07576223]
[1756604554272,0.28197097,206.44,206.43,46.48016822]
[1756604554695,0.28197097,206.44,206.43,51.32442535]
[1756604554881,0.28197097,206.44,206.43,43.05356524]
[1756604555089,0.28197097,206.44,206.43,46.48016822]
[1756604555283,0.28197097,206.44,206.43,50.09085478]
[1756604555791,0.96197097,206.44,206.43,3.61068656]
[1756604556000,5.80599344,206.44,206.43,43.04844838]
[1756604556371,0.96197097,206.44,206.43,39.9]
[1756604556980,0.96197097,206.44,206.4,3.42660298]
[1756604557294,0.68,206.43,206.41,39.9]
[1756604557491,5.1260573,206.44,206.42,39.9]
[1756604557970,0.68,206.43,206.42,39.9]
[1756604558571,0.68,206.43,206.39,3.42660298]
[1756604558778,0.68,206.42,206.4,39.9]
[1756604558998,8.55266028,206.44,206.41,39.9]
[1756604559396,8.55266028,206.44,206.42,39.9]
[1756604559580,0.68,206.43,206.38,3.42660298]
[1756604559794,0.68,206.42,206.39,43.32660298]
[1756604560973,0.68,206.41,206.37,0.03]
[1756604561175,0.68,206.41,206.38,39.9]
[1756604561374,0.68,206.43,206.39,17.02219699]
[1756604561590,0.68,206.43,206.4,43.32660298]
[1756604561785,0.68,206.42,206.4,39.9]
[1756604562110,0.68,206.41,206.39,13.59559401]
[1756604562300,0.68,206.4,206.37,0.03]
[1756604562489,8.27179896,206.39,206.38,39.9]
[1756604562687,8.95179896,206.39,206.38,39.9]
[1756604564202,5.52519598,206.39,206.38,39.9]
[1756604564498,8.95179896,206.39,206.38,39.9]
[1756604565800,8.95179896,206.39,206.37,0.03]
[1756604565984,3.42660298,206.38,206.37,0.03]
[1756604566185,3.42660298,206.38,206.37,39.93]
[1756604566501,4.10660298,206.38,206.37,39.93]
[1756604566699,4.10660298,206.38,206.37,0.03]
[1756604567575,4.10660298,206.38,206.34,0.03]
[1756604567576,3.42660298,206.35,206.34,0.03]
[1756604567995,8.95273818,206.35,206.34,0.03]
[1756604568196,5.5261352,206.35,206.34,0.03]
[1756604568384,8.95273818,206.35,206.34,0.03]
[1756604570693,8.27273818,206.35,206.34,0.03]
[1756604571195,8.95273818,206.35,206.34,0.03]
[1756604574582,26.0,206.33,206.32,0.03]
[1756604574884,29.42660298,206.33,206.27,35.9]
[1756604575088,3.42660298,206.28,206.27,35.9]
[1756604575391,4.10660298,206.28,206.27,35.9]
[1756604576291,8.95438269,206.28,206.27,35.9]
[1756604576989,3.42660298,206.36,206.27,57.44219699]
[1756604576990,0.68,206.36,206.27,57.44219699]
[1756604577188,4.10660298,206.35,206.29,3.42660298]
[1756604578203,4.84637006,206.34,206.29,3.42660298]
[1756604578407,4.84637006,206.34,206.29,3.94660298]
[1756604578605,8.27297304,206.34,206.28,3.42660298]
[1756604578782,3.42660298,206.3,206.24,0.55]
[1756604578985,4.10660298,206.31,206.25,3.42660298]
[1756604580403,4.84730974,206.3,206.25,3.42660298]
[1756604580603,4.84730974,206.3,206.26,3.42660298]
[1756604580897,4.10660298,206.34,206.28,3.42660298]
[1756604581101,0.68,206.33,206.28,3.42660298]
[1756604581299,0.68,206.33,206.27,0.52]
[1756604581300,0.68,206.32,206.27,0.52]
[1756604581589,0.68,206.32,206.28,3.42660298]
[1756604582515,0.7,206.36,206.31,3.42660298]
[1756604582724,0.06,206.38,206.35,3.42660298]
[1756604582900,4.90563852,206.38,206.34,3.42660298]
[1756604583212,4.90563852,206.38,206.32,0.52]
[1756604583213,0.7,206.37,206.32,3.42660298]
[1756604583390,0.7,206.37,206.33,43.32660298]
[1756604584515,5.54566721,206.37,206.33,43.32660298]
[1756604585608,0.06,206.38,206.33,43.32660298]
[1756604585915,0.06,206.38,206.34,3.94660298]
[1756604586299,0.06,206.38,206.35,3.42660298]
[1756604586490,0.06,206.38,206.35,3.94660298]
[1756604586910,0.06,206.38,206.36,3.94660298]
[1756604587127,0.06,206.38,206.36,0.52]
[1756604587303,0.06,206.38,206.37,3.94660298]
[1756604587805,0.06,206.38,206.36,3.42660298]
[1756604588108,0.06,206.38,206.37,39.88]
[1756604590612,4.18660298,206.38,206.34,0.03]
[1756604590914,8.2726078,206.36,206.34,0.03]
[1756604591321,3.42660298,206.36,206.34,0.03]
[1756604591519,8.27255743,206.36,206.34,0.03]
[1756604591725,8.97255743,206.36,206.34,0.03]
[1756604592226,8.27255743,206.36,206.34,0.03]
[1756604592524,5.54595445,206.36,206.34,0.03]
[1756604592724,8.97255743,206.36,206.34,0.03]
[1756604593832,0.7,206.35,206.34,0.03]
[1756604594131,5.5461352,206.35,206.34,0.03]
[1756604594524,0.7,206.35,206.34,0.03]
[1756604595036,4.84595289,206.36,206.34,0.03]
[1756604595219,0.7,206.35,206.34,0.03]
[1756604595619,8.97232321,206.37,206.34,0.03]
[1756604595819,0.7,206.36,206.34,0.03]
[1756604597041,0.7,206.36,206.31,0.03]
[1756604597042,26.0,206.33,206.31,0.03]
[1756604597332,3.42660298,206.32,206.31,0.03]
[1756604597514,4.12660298,206.32,206.31,0.03]
[1756604598525,8.97344284,206.32,206.31,0.03]
[1756604603836,3.42660298,206.37,206.32,13.59559401]
[1756604604010,3.42660298,206.34,206.31,0.55]
[1756604605726,3.42660298,206.35,206.31,0.55]
[1756604606946,3.42660298,206.35,206.31,0.03]
[1756604607148,3.42660298,206.33,206.31,0.03]
[1756604607645,3.48660298,206.34,206.31,0.03]
[1756604608542,3.42660298,206.32,206.31,0.03]
[1756604608740,4.18660298,206.34,206.31,0.03]
[1756604608944,0.06,206.34,206.31,0.03]
[1756604609335,0.06,206.34,206.32,0.52]
[1756604610149,0.06,206.37,206.34,13.59559401]
[1756604610322,0.06,206.43,206.38,13.59559401]
[1756604610519,0.06,206.43,206.39,39.86]
[1756604610748,0.06,206.43,206.39,43.62660298]
[1756604610928,0.06,206.43,206.4,5.18496124]
[1756604612643,0.06,206.43,206.39,45.22839698]
[1756604612828,0.06,206.43,206.4,39.84]
[1756604613031,0.67,206.4,206.36,13.59559401]
[1756604613237,3.48660298,206.41,206.39,39.84]
[1756604613728,0.67,206.4,206.39,39.84]
[1756604614447,0.06,206.41,206.39,39.84]
[1756604614745,8.33135886,206.41,206.39,39.84]
[1756604614954,4.09660298,206.4,206.39,39.84]
[1756604615452,0.67,206.4,206.39,39.84]
[1756604615646,0.67,206.4,206.34,8.27294485]
[1756604615833,0.67,206.4,206.36,13.59559401]
[1756604617142,8.27160346,206.4,206.35,39.84]
[1756604617348,0.67,206.39,206.35,39.84]
[1756604617647,0.67,206.38,206.33,3.76660298]
[1756604617823,0.67,206.38,206.36,39.84]
[1756604619351,8.27210364,206.38,206.37,39.82]
[1756604619553,4.84550066,206.38,206.37,39.82]
[1756604619855,8.27210364,206.38,206.37,39.82]
[1756604620046,8.94210364,206.38,206.37,39.82]
[1756604620359,8.94210364,206.38,206.32,17.02219699]
[1756604620660,3.42660298,206.34,206.31,0.03]
[1756604620825,3.42660298,206.34,206.33,39.82]
[1756604620826,10.99380412,206.34,206.33,39.82]
[1756604621161,7.56720114,206.34,206.33,39.82]
[1756604624044,7.22720114,206.34,206.33,62.02880194]
[1756604624359,7.22720114,206.34,206.33,65.10322384]
[1756604624932,0.08197097,206.44,206.34,13.59559401]
[1756604625137,0.08197097,206.44,206.4,13.59559401]
[1756604625352,0.08197097,206.44,206.4,53.41559401]
[1756604626850,0.08197097,206.44,206.4,61.68715823]
[1756604627240,0.08197097,206.44,206.4,64.76096282]
[1756604629434,0.08197097,206.44,206.4,53.41559401]
[1756604629630,0.08197097,206.44,206.4,61.68715823]
[1756604632842,0.08197097,206.44,206.4,56.82219699]
[1756604633352,0.08197097,206.44,206.4,61.66715823]
[1756604635169,0.08197097,206.44,206.4,21.86715823]
[1756604635471,0.08197097,206.44,206.4,61.66715823]
[1756604636042,0.73,206.43,206.4,61.66715823]
[1756604637272,0.73,206.41,206.4,61.66715823]
[1756604637646,0.73,206.41,206.4,56.80219699]
[1756604639864,0.73,206.41,206.4,3.42660298]
[1756604640069,0.73,206.41,206.4,43.20660298]
[1756604640458,0.73,206.41,206.4,39.78]
[1756604641149,0.73,206.41,206.38,3.42660298]
[1756604641359,0.67,206.4,206.39,39.78]
[1756604641544,0.67,206.4,206.39,43.20660298]
[1756604643272,0.06,206.41,206.39,56.80219699]
[1756604643451,0.06,206.41,206.4,3.42660298]
[1756604644964,0.06,206.41,206.4,17.02219699]
[1756604648687,0.06,206.41,206.4,21.86715823]
[1756604649972,0.06,206.41,206.4,18.44055525]
[1756604650181,0.06,206.41,206.4,21.86715823]
[1756604653078,0.06,206.41,206.4,47.86715823]
[1756604653563,0.06,206.41,206.4,53.40857002]
[1756604655576,0.06,206.41,206.4,27.40857002]
[1756604656381,0.06,206.41,206.4,27.40794687]
[1756604656683,0.14197097,206.44,206.43,39.59559401]
[1756604656858,0.06,206.46,206.44,13.59559401]
[1756604657056,0.06,206.46,206.43,94.63223974]
[1756604657057,7.60177154,206.52,206.49,13.59559401]
[1756604657357,7.60177154,206.52,206.51,17.02219699]
[1756604657792,7.60177154,206.52,206.51,39.59559401]
[1756604657972,7.60177154,206.52,206.51,82.76219699]
[1756604658282,6.60177154,206.52,206.51,82.76219699]
[1756604658956,6.60177154,206.52,206.51,87.6045775]
[1756604659283,6.60177154,206.52,206.51,84.17797452]
[1756604659459,6.60177154,206.52,206.51,87.6045775]
[1756604660754,6.60177154,206.52,206.51,87.5845775]
[1756604661385,6.60177154,206.52,206.51,87.6145775]
[1756604661682,6.66177154,206.52,206.51,87.6145775]
[1756604663884,6.66177154,206.52,206.51,84.18797452]
[1756604664090,6.66177154,206.52,206.51,87.5945775]
[1756604665985,7.37177154,206.52,206.51,87.5945775]
[1756604666160,7.37177154,206.52,206.51,82.75219699]
[1756604666563,7.37177154,206.52,206.51,56.75219699]
[1756604666765,7.37177154,206.52,206.51,13.62559401]
[1756604666973,7.37177154,206.52,206.51,17.05219699]
[1756604667262,7.37177154,206.52,206.51,56.75219699]
[1756604667463,7.37177154,206.52,206.51,53.32559401]
[1756604667664,7.37177154,206.52,206.51,17.05219699]
[1756604667862,7.37177154,206.52,206.51,56.75219699]
[1756604668476,7.37177154,206.52,206.51,17.05219699]
[1756604668682,7.37177154,206.52,206.51,56.75219699]
[1756604670781,7.37177154,206.52,206.51,61.5745775]
[1756604670982,6.66177154,206.52,206.51,61.5745775]
[1756604671380,0.06,206.55,206.54,39.59559401]
[1756604671584,0.7,206.61,206.55,13.59559401]
[1756604671768,0.28952062,206.62,206.61,13.59559401]
[1756604671974,0.28952062,206.62,206.61,53.27559401]
[1756604672174,0.28952062,206.62,206.61,56.70219699]
[1756604672688,0.98952062,206.62,206.61,56.70219699]
[1756604672878,0.98952062,206.62,206.61,53.27559401]
[1756604673193,0.98952062,206.62,206.61,56.70219699]
[1756604673690,0.98952062,206.62,206.61,53.27559401]
[1756604673866,0.98952062,206.62,206.61,56.70219699]
[1756604674673,0.28952062,206.62,206.61,56.70219699]
[1756604675297,0.28952062,206.62,206.61,61.54223377]
[1756604676485,0.28952062,206.62,206.61,21.86223377]
[1756604676686,0.98952062,206.62,206.61,56.68219699]
[1756604676998,0.98952062,206.62,206.58,3.42660298]
[1756604677297,4.12660298,206.61,206.59,39.66]
[1756604677496,0.7,206.6,206.59,39.66]
[1756604678874,5.54027105,206.6,206.59,39.66]
[1756604679090,5.54027105,206.6,206.56,3.42660298]
[1756604679295,0.7,206.59,206.57,39.66]
[1756604679494,0.7,206.58,206.53,13.59559401]
[1756604679717,0.7,206.57,206.54,43.08660298]
[1756604679998,8.26687403,206.6,206.55,39.69]
[1756604679999,0.7,206.56,206.55,39.69]
[1756604681081,0.7,206.56,206.55,39.67]
[1756604681588,0.7,206.56,206.55,0.03]
[1756604681789,0.7,206.56,206.55,39.67]
[1756604683191,5.54120836,206.56,206.55,39.67]
[1756604683710,8.96781134,206.56,206.55,0.03]
[1756604683882,26.0,206.53,206.52,0.03]
[1756604684200,29.42660298,206.53,206.52,14.51]
[1756604684386,0.7,206.6,206.53,13.59559401]
[1756604684592,1.04952062,206.62,206.59,17.02219699]
[1756604684783,1.04952062,206.62,206.6,43.06660298]
[1756604686392,0.34952062,206.62,206.61,3.42660298]
[1756604686594,0.34952062,206.62,206.61,17.74219699]
[1756604687418,0.34952062,206.62,206.61,20.11817232]
[1756604688292,0.34952062,206.62,206.61,24.9582091]
[1756604690009,0.34952062,206.62,206.61,18.43563079]
[1756604690310,0.34952062,206.62,206.61,63.8582091]
[1756604691190,0.34952062,206.62,206.61,19.39817232]
[1756604691507,0.34952062,206.62,206.61,58.05563079]
[1756604691808,0.34952062,206.62,206.61,63.8582091]
[1756604692787,0.7,206.68,206.61,50.98261509]
[1756604692988,0.7,206.68,206.66,5.80257831]
[1756604693201,0.7,206.68,206.65,5.80257831]
[1756604693409,0.7,206.68,206.66,39.62]
[1756604693606,0.7,206.67,206.66,39.62]
[1756604693805,26.0,206.76,206.66,39.62]
[1756604693806,0.7,206.7,206.66,45.42257831]
[1756604693989,0.7,206.69,206.66,45.42257831]
[1756604694188,0.7,206.68,206.66,45.42257831]
[1756604696916,0.7,206.68,206.67,39.6]
[1756604697886,0.7,206.68,206.65,5.80257831]
[1756604698093,0.7,206.67,206.66,39.6]
[1756604698313,0.7,206.67,206.61,5.802578]
[1756604698631,0.7,206.66,206.62,39.6]
[1756604698788,0.7,206.65,206.62,5.80257831]
[1756604699115,0.7,206.64,206.63,39.6]
[1756604700116,0.7,206.64,206.63,45.40257831]
[1756604700299,0.7,206.64,206.58,19.39817301]
[1756604700492,0.7,206.63,206.59,45.40257831]
[1756604700692,0.7,206.62,206.6,39.6]
[1756604700913,5.54012601,206.61,206.57,5.80257831]
[1756604701106,0.7,206.6,206.58,39.6]
[1756604701418,0.7,206.59,206.58,39.6]
[1756604703213,11.34308365,206.59,206.55,0.03]
[1756604703416,5.80257831,206.58,206.56,39.6]
[1756604703619,0.72,206.57,206.56,39.6]
[1756604704704,0.72,206.57,206.55,0.03]
[1756604704905,6.52257831,206.56,206.55,0.03]
[1756604705119,11.36378667,206.56,206.55,0.03]
[1756604705300,5.56120836,206.56,206.55,0.03]